[Event "1st Chessable Sunway Formentera 2022"]
[Site "Formentera Punta Prima"]
[Date "2022.05.01"]
[Round "3"]
[White "Romanishin, Oleg M"]
[Black "Martirosyan, Haik M."]
[Result "1/2-1/2"]
[ECO "E60"]
[WhiteElo "2400"]
[BlackElo "2652"]
[Annotator "TA"]
[PlyCount "42"]
[EventDate "2022.05.05"]
[EventType "swiss"]
[EventCountry "ESP"]
[SourceTitle "playchess.com"]
[Source "ChessBase"]
[SourceQuality "1"]
[TimeControl "40/5400+30:1800+30"]

{[%evp 16,42,0,0,0,0,0,0,0,-6,15,24,60,-49,96,85,96,65,65,60,177,155,172,187,190,148,147,138,155]} 1. d4 {[%emt 0:00:10]} Nf6 {[%emt 0:05:30]} 2. Nf3 {[%emt 0:00:08]} g6 {[%emt 0:00:39]} 3. g3 {[%emt 0:00:12]} Bg7 {[%emt 0:00:09]} 4. c4 {[%emt 0:01:08]} O-O {[%emt 0:00:11]} 5. Bg2 {[%emt 0:00:05]} d6 {[%emt 0:00:47][%cal Bd7d6,Bd6e5,Be5e4,Be4e3][%mdl 32]} 6. O-O {[%emt 0:00:08]} c6 {[%emt 0:00:45]} 7. b3 {[%emt 0:02:09]} e5 {[%emt 0:01:59]} 8. dxe5 {[%emt 0:01:15]} dxe5 {[%emt 0:00:08]} 9. Ba3 {[%emt 0:00:05]} (9. Nxe5 $2 Qxd1 10. Rxd1 Nfd7 $17) 9... e4 {[%emt 0:00:49] E60: King's Indian: Unusual lines and Fianchetto Variation without Nc3.} 10. Bxf8 {[%emt 0:02:33]} Qxf8 {[%emt 0:00:08]} 11. Nd4 {[%emt 0:00:33]} e3 {[%emt 0:00:10] [#] Inhibits Qd2. ...Ng4 is the strong threat. The position is equal.} 12. f3 $146 {[%emt 0:03:50] Inhibits Ng4.} ({Predecessor:} 12. fxe3 Ng4 13. Qd2 Qe7 14. Nc3 Nxe3 15. Rf4 f5 16. Be4 Ng4 17. Bf3 Ne5 18. Re1 {1-0 (37) Gukesh,D (2542)-Muradli,M (2427) Chess.com INT 2020}) 12... Qe7 {[%emt 0:10:48]} 13. Nc3 {[%emt 0:02:43]} Na6 {[%emt 0:01:12]} 14. a3 {[%emt 0:15:42]} ({Better is} 14. Qe1 $14) 14... Bd7 {[%emt 0:02:31]} (14... Ne8 $15 {keeps the upper hand.} 15. Rc1 Qd7 16. Nxc6 bxc6) 15. b4 $16 {[%emt 0:00:53]} h5 {[%emt 0:04:08][%cal Oh5h4]} 16. Qd3 {[%emt 0:10:05]} Re8 {[%emt 0:12:58]} 17. Rad1 {[%emt 0:05:27]} Qf8 {[%emt 0:09:11]} (17... c5 $14) 18. Ne4 {[%emt 0:02:11] White is clearly better.} c5 {[%emt 0:03:30] [#] Threatens to win with ...Nxe4.} 19. Nb5 {[%emt 0:03:01] And now Nxf6+ would win.} Nxe4 {[%emt 0:02:49]} 20. Qxd7 {[%emt 0:01:49]} Nd2 {[%emt 0:00:33]} 21. Qxb7 {[%emt 0:00:16]} Re6 {[%emt 0:00:52] Weighted Error Value: White=0.19 (very precise) /Black=0.40} 1/2-1/2

[Event "1st Chessable Sunway Formentera 2022"]
[Site "Formentera Punta Prima"]
[Date "2022.05.01"]
[Round "3"]
[White "Alinasab, Mobina"]
[Black "Lever, Erwan"]
[Result "1-0"]
[ECO "B41"]
[WhiteElo "2373"]
[BlackElo "2209"]
[Annotator "TA"]
[PlyCount "95"]
[EventDate "2022.05.05"]
[EventType "swiss"]
[EventCountry "ESP"]
[SourceTitle "playchess.com"]
[Source "ChessBase"]
[SourceQuality "1"]
[TimeControl "40/5400+30:1800+30"]

{[%evp 11,95,27,35,29,23,12,0,0,0,0,0,-6,-9,-27,-22,-4,-19,-15,-5,-23,-26,-36,-34,-33,8,15,29,20,23,26,50,0,3,0,47,47,53,39,56,50,84,70,127,123,98,38,52,19,27,15,26,44,27,0,0,-69,-81,-80,0,0,182,-17,181,188,165,61,456,167,254,253,431,433,435,428,491,489,504,495,868,669,767,582,584,563,531,444]} 1. e4 {[%emt 0:00:09]} c5 {[%emt 0:00:05]} 2. Nf3 {[%emt 0:00:23]} e6 {[%emt 0:00:06]} 3. d4 {[%emt 0:00:05]} cxd4 {[%emt 0:00:06]} 4. Nxd4 {[%emt 0:00:07]} a6 {[%emt 0:00:05]} 5. c4 {[%emt 0:00:22]} Nf6 {[%emt 0:00:08]} 6. Nc3 {[%emt 0:00:08]} Bb4 {[%emt 0:00:07]} 7. Qd3 {[%emt 0:00:37] B41: Sicilian: Kan Variation: 5 c4.} O-O {[%emt 0:00:12]} 8. Be2 {[%emt 0:12:04]} d6 {[%emt 0:03:19]} 9. Nc2 {[%emt 0:03:11] The position is equal.} Bxc3+ {[%emt 0:01:50]} 10. bxc3 {[%emt 0:00:19]} Nbd7 {[%emt 0:09:28]} 11. f3 {[%emt 0:14:51] [#]} d5 $146 {[%emt 0:10:28]} ({Predecessor:} 11... Nc5 12. Qe3 e5 13. Ba3 Qc7 14. O-O Be6 15. Bxc5 dxc5 16. Rfb1 Ne8 17. Qd2 Rd8 {1-0 (44) Das,S (2399)-Polyik,P (2279) Pardubice 2017}) 12. exd5 {[%emt 0:12:53]} exd5 {[%emt 0:00:07]} 13. cxd5 {[%emt 0:06:50]} Ne5 {[%emt 0:05:03][%csl LRd3,LRd5]} 14. Qd4 {[%emt 0:00:07]} Qxd5 {[%emt 0:01:03]} 15. Nb4 {[%emt 0:05:08]} Qa5 {[%emt 0:02:28]} 16. O-O {[%emt 0:07:07]} Rd8 {[%emt 0:05:14]} 17. Qf2 {[%emt 0:00:17]} Be6 {[%emt 0:05:58]} 18. Be3 {[%emt 0:00:21]} Re8 {[%emt 0:03:39]} 19. Bb6 {[%emt 0:03:22]} Qa3 {[%emt 0:02:01]} 20. Bd4 $36 {[%emt 0:01:37][%mdl 2048] Black is under pressure.} Bf5 {[%emt 0:04:24]} 21. Rfd1 {[%emt 0:11:09]} (21. Rfe1 $14) 21... a5 $11 {[%emt 0:08:54]} 22. Nd3 {[%emt 0:07:03]} Nc6 {[%emt 0:00:58]} (22... Bxd3 $11 23. Bxd3 Nxd3 24. Rxd3 Ra6) 23. Bc5 $14 {[%emt 0:01:14]} Qa4 {[%emt 0:00:20]} (23... Qxc3 24. Rac1 Nd5 25. Rxc3 $16) 24. Bf1 {[%emt 0:00:36]} Rad8 {[%emt 0:15:14]} 25. Nb2 $1 {[%emt 0:01:19]} Qf4 {[%emt 0:00:14]} 26. Nc4 $1 {[%emt 0:03:53]} Rd5 {[%emt 0:11:46]} ({Black should try} 26... Rxd1 $14 27. Rxd1 Be6) 27. Rxd5 {[%emt 0:04:39]} Nxd5 {[%emt 0:00:02]} 28. Nd6 {[%emt 0:00:16]} (28. Qb2 $16) 28... Re6 {[%emt 0:01:34]} 29. Nxf5 {[%emt 0:02:26]} Qxf5 {[%emt 0:00:05]} 30. Bc4 {[%emt 0:01:04] Threatens to win with Rd1.} (30. c4 $5 {[%cal Rc4d5]} Nc3 31. Be3 $11) 30... Rg6 {[%emt 0:02:10]} 31. Re1 {[%emt 0:01:35][%cal Re1e8]} h5 $1 {[%emt 0:00:16] Strongly threatening ...Nf4.} 32. Be3 {[%emt 0:00:42]} (32. Bb3 $5 {[%cal Rb3c2]}) 32... Nxc3 {[%emt 0:04:28]} 33. Bd2 {[%emt 0:00:27] [#]} (33. Bb3 $11) 33... Ne5 $1 $15 {[%emt 0:02:22]} 34. Bf1 {[%emt 0:00:18]} Nd5 {[%emt 0:01:41]} (34... Nxf3+ $1 $17 35. Kh1 Ne4 36. Rxe4 Qxe4 37. gxf3 Rf6 $1) 35. Kh1 $11 {[%emt 0:00:16] Black must now prevent Qc5.} Nd3 {[%emt 0:00:29] Prevents Qc5.} (35... b6 $11 {and Black has nothing to worry.}) 36. Re8+ $18 {[%emt 0:00:19][%mdl 1024] White has strong compensation.} Kh7 {[%emt 0:00:01]} 37. Qd4 {[%emt 0:00:38]} N3f4 {[%emt 0:01:21]} 38. Qe4 {[%emt 0:01:03]} (38. g3 $1 $18 {[%cal Rg3f4]} Nc7 39. Re5) 38... Qf6 {[%emt 0:00:46][%mdl 8192]} (38... Qxe4 39. Rxe4 Rf6 40. Rd4 $18) (38... Rf6 $14) 39. g3 $2 {[%emt 0:00:21]} (39. Re5) 39... Qa1 {[%emt 0:00:46] [#]} (39... Qb6 $142) 40. Qe1 $1 {[%emt 0:00:00]} ({Stronger than} 40. Be1 {[#]} Nf6 $1 41. Qe5 Qd1 $17) 40... Qd4 {[%emt 0:00:00]} (40... Qxa2 41. gxf4 (41. Bxf4 Nxf4 42. gxf4 Qd5 $18) 41... Qb3) 41. Re4 {[%emt 0:00:42] White is clearly winning.} ({Weaker is} 41. Bxf4 Nxf4 42. Re4 Nd3 $11) 41... Qb6 {[%emt 0:11:40]} 42. Bxf4 {[%emt 0:01:41][%cal Bd2f4,Bf4e3,Be3d4][%mdl 32] A strong pair of Bishops.} f5 {[%emt 0:00:02] [#]} 43. Be3 $1 {[%emt 0:05:02]} Qb2 {[%emt 0:00:09]} (43... Nxe3 44. Rxe3) 44. Bd4 {[%emt 0:01:18]} Qa3 {[%emt 0:00:14]} (44... Qb4 $142 45. a3 Qxe1 46. Rxe1 Rd6) 45. Re6 {[%emt 0:07:14] Hoping for Rxg6.} Nf4 {[%emt 0:09:37]} 46. Rxg6 {[%emt 0:02:05]} Qxf3+ {[%emt 0:00:02]} 47. Kg1 {[%emt 0:00:02]} Nxg6 {[%emt 0:00:09]} 48. Qe2 {[%emt 0:01:09] Weighted Error Value: White=0.26 (precise) /Black=0.45} 1-0

[Event "1st Chessable Sunway Formentera 2022"]
[Site "Formentera Punta Prima"]
[Date "2022.05.01"]
[Round "3"]
[White "Papadiamandis, Elliot"]
[Black "Real, Thibault"]
[Result "1-0"]
[ECO "B30"]
[WhiteElo "2373"]
[BlackElo "2262"]
[Annotator "TA"]
[PlyCount "61"]
[EventDate "2022.05.05"]
[EventType "swiss"]
[EventCountry "ESP"]
[SourceTitle "playchess.com"]
[Source "ChessBase"]
[SourceQuality "1"]
[TimeControl "40/5400+30:1800+30"]

{[%evp 10,61,4,10,21,8,14,19,53,47,51,48,50,54,48,44,42,47,51,31,32,31,8,31,18,-18,-2,-8,-9,-136,-120,-156,-159,-278,53,51,56,52,56,51,67,80,129,131,210,202,197,204,1130,1129,1129,1129,29996,29997]} 1. e4 {[%emt 0:00:05]} c5 {[%emt 0:00:10]} 2. Nc3 {[%emt 0:00:38]} g6 {[%emt 0:00:07]} 3. Nf3 {[%emt 0:11:45]} Bg7 {[%emt 0:00:14]} 4. Bc4 {[%emt 0:05:02]} Nc6 {[%emt 0:01:09]} 5. O-O {[%emt 0:00:21]} e6 {[%emt 0:10:08]} 6. d4 {[%emt 0:09:07]} Nxd4 {[%emt 0:01:07] B30: Sicilian: 2...Nc6 3 Bb5, lines without ...g6.} 7. Nxd4 {[%emt 0:01:07]} cxd4 {[%emt 0:04:05]} 8. Nb5 {[%emt 0:00:34]} Qb6 {[%emt 0:05:11] The position is equal.} 9. c3 $1 {[%emt 0:01:51]} Ne7 {[%emt 0:16:15]} 10. Nxd4 {[%emt 0:09:29]} O-O {[%emt 0:00:52]} 11. Be3 {[%emt 0:00:24][%cal Od4e6]} Qc7 {[%emt 0:04:28]} 12. Bb3 {[%emt 0:04:28]} a6 {[%emt 0:09:49] Prevents Nb5.} 13. Qd2 {[%emt 0:09:23]} b5 {[%emt 0:13:20] [#]} 14. Bf4 $146 {[%emt 0:06:45]} ({Predecessor:} 14. Bh6 Bxh6 15. Qxh6 f5 16. Rfe1 fxe4 17. Rxe4 Nf5 18. Nxf5 Rxf5 19. Rh4 Rf7 20. Re1 {½-½ (45) Matikozian,A (2458)-Yankovsky,R (2363) Los Angeles 2011}) 14... e5 {[%emt 0:01:21]} 15. Bg3 {[%emt 0:00:48]} Bb7 {[%emt 0:00:12]} 16. Rfe1 {[%emt 0:01:55]} Rad8 {[%emt 0:08:20]} 17. Qg5 {[%emt 0:11:45]} d6 {[%emt 0:02:55]} 18. Nc2 {[%emt 0:05:43]} Kh8 {[%emt 0:00:10]} 19. f4 {[%emt 0:02:45]} (19. Rad1 $11) 19... f5 $17 {[%emt 0:03:58]} 20. fxe5 {[%emt 0:00:27]} dxe5 {[%emt 0:02:44]} (20... Bxe4 21. exd6 Qb6+ 22. Kh1 $16) 21. exf5 {[%emt 0:00:40]} (21. Bh4 $17 Ng8 22. Bxg8 Kxg8 23. exf5) 21... Qc6 $2 {[%emt 0:02:14]} 22. Bxe5 $14 {[%emt 0:02:37] Dancing on a razor blade.} Bxe5 {[%emt 0:02:24]} 23. Rxe5 {[%emt 0:01:44]} Nxf5 {[%emt 0:02:38] Strongly threatening ...h6.} 24. Re2 {[%emt 0:02:55][%cal Oc2d4]} a5 {[%emt 0:05:47]} 25. Rae1 {[%emt 0:01:46]} a4 {[%emt 0:02:12]} ({Better is} 25... Qb6+ 26. Nd4 Nxd4 27. Qe5+ Qf6 28. Qxf6+ (28. cxd4 Qxe5 29. dxe5 Rfe8 $16) 28... Rxf6 29. cxd4 a4) 26. Be6 $16 {[%emt 0:00:16]} Ng7 {[%emt 0:00:42]} (26... Qd6 $16 27. Bxf5 Rxf5) 27. Nd4 $18 {[%emt 0:00:39] Active counter play!} Qb6 {[%emt 0:00:37] [#]} 28. a3 {[%emt 0:04:11]} ({Resist} 28. Qxb5 $6 Qxb5 29. Nxb5 Nxe6 $16) 28... Nxe6 $2 {[%emt 0:00:32]} (28... Qd6 29. Re5 (29. Qxb5 $2 Ba6 $19) 29... Bc6) 29. Rxe6 {[%emt 0:00:17]} Qc7 {[%emt 0:00:38]} 30. Re7 {[%emt 0:01:11]} Rd7 {[%emt 0:00:21] [#]} 31. Qh6 $1 {[%emt 0:01:19][%mdl 512] White used his chance.  Weighted Error Value: White=0.20 (precise) /Black=0.52} 1-0

[Event "1st Chessable Sunway Formentera 2022"]
[Site "Formentera Punta Prima"]
[Date "2022.05.01"]
[Round "3"]
[White "Tsatsalashvili, Keti"]
[Black "Kovacs, Klara"]
[Result "1-0"]
[ECO "E04"]
[WhiteElo "2331"]
[BlackElo "2108"]
[Annotator "TA"]
[PlyCount "99"]
[EventDate "2022.05.05"]
[EventType "swiss"]
[EventCountry "ESP"]
[SourceTitle "playchess.com"]
[Source "ChessBase"]
[SourceQuality "1"]
[TimeControl "40/5400+30:1800+30"]

{[%evp 10,99,25,9,27,22,24,0,-13,-9,0,-21,-12,-22,-17,-28,-14,-37,0,0,0,0,0,0,0,0,5,-16,12,-23,0,-8,-16,-20,-5,-57,8,-26,-16,-30,-12,-80,-2,0,0,-17,-12,-12,-16,-12,2,0,0,0,7,6,88,93,164,167,172,174,492,168,205,157,154,151,157,157,174,166,171,149,149,149,150,144,220,220,211,210,412,412,548,512,966,956,943,904,915,893]} 1. d4 {[%emt 0:00:02] ChessBase II} Nf6 {[%emt 0:00:05]} 2. Nf3 {[%emt 0:00:17]} d5 {[%emt 0:00:04][%cal Bd7d5,Bd5c4][%mdl 32]} 3. c4 {[%emt 0:00:38]} e6 {[%emt 0:00:06]} 4. g3 {[%emt 0:00:12]} dxc4 {[%emt 0:00:13]} 5. Bg2 {[%emt 0:00:16]} Bb4+ {[%emt 0:00:52]} 6. Bd2 {[%emt 0:00:38]} c5 {[%emt 0:00:05] E04: Open Catalan: 5 Nf3.} 7. dxc5 {[%emt 0:02:41]} Bxc5 {[%emt 0:00:20]} 8. Qa4+ {[%emt 0:01:46]} Nbd7 {[%emt 0:00:26] The position is equal.} 9. Qxc4 {[%emt 0:02:50]} b5 {[%emt 0:00:38]} 10. Qb3 {[%emt 0:01:18][%cal Of3e5]} Bb7 {[%emt 0:01:18]} 11. O-O {[%emt 0:01:33]} a6 {[%emt 0:04:25]} 12. Bb4 {[%emt 0:06:45]} O-O {[%emt 0:01:34]} 13. Nc3 {[%emt 0:02:49] [#]} Nd5 $146 {[%emt 0:02:15]} (13... Rc8 $5 {[%cal Ra6a5]}) ({Predecessor:} 13... Qe7 14. Bxc5 Nxc5 15. Qb4 a5 16. Qh4 b4 17. Nb1 Rfd8 18. Nbd2 e5 19. Nc4 e4 {0-1 (40) Primel,D (1953)-Migot,T (2360) Sautron 2017 EXT 2020 [ChessBase II]}) 14. Nxd5 {[%emt 0:04:38]} Bxd5 {[%emt 0:00:08]} 15. Qa3 {[%emt 0:00:31]} Qb6 {[%emt 0:04:13]} 16. Rac1 {[%emt 0:09:42][%cal Rb4c5]} Bxb4 {[%emt 0:01:18]} 17. Qxb4 {[%emt 0:00:01]} a5 {[%emt 0:00:08]} 18. Qe7 {[%emt 0:01:45]} Ra7 {[%emt 0:00:29]} 19. b3 {[%emt 0:03:31]} b4 {[%emt 0:08:06]} (19... Nf6 $5 {[%cal Ra7e7]} 20. Qc5 Qb7 $15) 20. Qh4 {[%emt 0:08:20]} Nf6 {[%emt 0:01:14]} 21. Qd4 {[%emt 0:00:42]} Qb7 {[%emt 0:03:56]} 22. Ne1 {[%emt 0:09:53]} ({Better is} 22. Rc2 $11) 22... a4 {[%emt 0:08:31]} (22... Raa8 $15) 23. f3 {[%emt 0:02:41]} axb3 {[%emt 0:01:05]} 24. axb3 {[%emt 0:01:08]} e5 {[%emt 0:01:13]} 25. Qxe5 {[%emt 0:05:26]} (25. Qc5 $11 {keeps the balance.}) 25... Re8 {[%emt 0:00:27]} (25... Qb6+ $1 $17 26. e3 Ra3) 26. Qd4 $11 {[%emt 0:01:34]} Rxe2 {[%emt 0:00:36]} 27. Rf2 {[%emt 0:01:09]} (27. Rc2 $5 {[%cal Rc2e2]} Ra2 28. Rxa2 Rxa2 29. Nd3 $11) 27... Raa2 {[%emt 0:07:20]} 28. Rxe2 {[%emt 0:01:14]} Rxe2 {[%emt 0:00:03]} 29. Bf1 {[%emt 0:01:45]} Ra2 {[%emt 0:02:07]} 30. Nd3 $40 {[%emt 0:01:35][%mdl 128] White is up to no good.} Ra8 $1 {[%emt 0:03:06]} ({Don't take} 30... Rd2 31. Qe3 Ra2 32. Nxb4 $1 $16) 31. Qxb4 {[%emt 0:04:23]} Qa7+ {[%emt 0:13:29]} 32. Qc5 {[%emt 0:01:18] Hoping for Qxa7.} Qd7 {[%emt 0:00:08] [#]} (32... Qb7 $11) 33. b4 $1 $16 {[%emt 0:03:06]} ({Much worse is} 33. Ne5 Qe6 34. Qd4 Bxb3 $11) 33... Re8 {[%emt 0:01:06] [#] Inhibits Ne5.} (33... h5 $16) 34. Nf4 $1 $18 {[%emt 0:03:28]} Qb7 {[%emt 0:07:31]} (34... Bxf3 $2 35. Bb5 Qd8 36. Bxe8 Nxe8 37. Rf1 $18) 35. Nxd5 {[%emt 0:00:21]} Nxd5 $2 {[%emt 0:00:03]} (35... Qxd5 36. Qxd5 Nxd5) 36. b5 $2 {[%emt 0:00:14]} (36. Bb5 Rf8 37. Bc6 Qxb4 38. Bxd5) 36... g6 {[%emt 0:03:46]} 37. Bd3 {[%emt 0:01:51] And now Be4 would win.} Nf6 {[%emt 0:07:29] Prevents Be4.} 38. Qf2 {[%emt 0:01:03]} Rd8 {[%emt 0:04:26]} 39. Bf1 {[%emt 0:00:41]} Nd7 {[%emt 0:00:27]} 40. Rd1 {[%emt 0:00:00] Qd4 is the strong threat.} Re8 {[%emt 0:00:00]} 41. Rb1 {[%emt 0:06:50]} Ne5 {[%emt 0:05:16]} 42. Be2 {[%emt 0:37:47]} Qd5 {[%emt 0:18:39]} 43. b6 {[%emt 0:00:00]} Rb8 {[%emt 0:17:11]} (43... Qa2 $16 44. Rd1 Qb3) 44. f4 {[%emt 0:00:05]} Nd7 {[%emt 0:00:06]} 45. Bf3 {[%emt 0:00:05] Against Qe4} Qf5 (45... Qd3 {was worth a try.} 46. Rd1 Qb5) 46. Rb2 {[%emt 0:00:00]} Nc5 {Strongly threatening ...Nd3.} 47. Rb5 {[%emt 0:00:00] aiming for b7. White is clearly winning.} Nd3 (47... Qd3 $142) 48. Rxf5 {[%emt 0:00:00][%cal Of2d4] Threatening mate with Qd4!} Nxf2 49. Rb5 {[%emt 0:00:00]} ({Worse is} 49. Kxf2 gxf5 50. b7 Kf8 $11) 49... Nd3 50. b7 {[%emt 0:00:00] Weighted Error Value: White=0.18 (very precise) /Black=0.33} 1-0

[Event "1st Chessable Sunway Formentera 2022"]
[Site "Formentera Punta Prima"]
[Date "2022.05.01"]
[Round "3"]
[White "Chkhaidze, Nikoloz"]
[Black "Perkampus, Laurin"]
[Result "1-0"]
[ECO "D20"]
[WhiteElo "2301"]
[BlackElo "2061"]
[Annotator "TA"]
[PlyCount "129"]
[EventDate "2022.05.05"]
[EventType "swiss"]
[EventCountry "ESP"]
[SourceTitle "playchess.com"]
[Source "ChessBase"]
[SourceQuality "1"]
[TimeControl "40/5400+30:1800+30"]

{[%evp 11,129,27,33,18,35,23,38,26,35,31,33,32,34,26,43,34,35,12,22,13,19,20,25,14,14,0,30,11,67,7,6,7,45,46,47,31,47,24,58,60,61,57,83,72,103,103,143,137,139,106,109,86,93,60,70,47,53,51,66,41,176,176,166,177,189,182,160,160,209,181,376,118,254,188,810,298,326,320,318,312,355,338,483,421,394,395,427,427,1053,583,862,853,648,0,441,0,1310,1258,1429,567,1668,2411,29974,29975,29979,29979,29980,29972,29982,29983,29983,29984,29984,29985,29987,29986,29986,29987,29988,29989]} 1. d4 {[%emt 1:09:14]} d5 {[%emt 1:30:55]} 2. c4 {[%emt 0:21:57]} dxc4 {[%emt 0:00:28]} 3. e3 {[%emt 0:00:25]} e5 {[%emt 0:00:10]} 4. Bxc4 {[%emt 0:00:37]} exd4 {[%emt 0:00:49]} 5. exd4 {[%emt 0:00:35]} Bd6 {[%emt 0:00:00]} 6. Nf3 {[%emt 0:00:34]} Nf6 {[%emt 0:00:07]} 7. Qe2+ {[%emt 0:00:31] D20: Queen's Gambit Accepted: 3 e3 and 3 e4.} Qe7 {[%emt 0:01:12]} 8. Qxe7+ {[%emt 0:00:33]} Bxe7 {[%emt 0:00:00]} (8... Kxe7 {looks sharper.} 9. O-O Nc6 10. Re1+ Kf8) 9. O-O {[%emt 0:00:00] White is slightly better.} O-O {[%emt 0:00:35]} 10. Re1 {[%emt 0:00:23]} Bd6 {[%emt 0:01:07]} 11. Nc3 {[%emt 0:00:58]} a6 {[%emt 0:00:00]} 12. Bg5 {[%emt 0:00:00]} Nbd7 $1 {[%emt 0:00:00]} 13. Ne5 {[%emt 0:00:10]} b5 {[%emt 0:00:00]} 14. Nxd7 {[%emt 0:00:00]} Bxd7 {[%emt 0:00:00]} 15. Bb3 {[%emt 0:00:15] [#]} Bf5 $146 {[%emt 0:00:00]} ({Predecessor:} 15... Rfe8 16. Bxf6 gxf6 17. Ne4 Kg7 18. Nxd6 cxd6 19. f3 a5 20. Kf2 Rac8 21. Rac1 Rxe1 22. Rxe1 {½-½ (39) Tregubov,P (2575)-Michalik,P (2557) Chess.com INT 2017}) 16. Bxf6 {[%emt 0:00:00]} gxf6 {[%emt 0:03:06]} 17. Nd5 {[%emt 0:02:28]} Kg7 {[%emt 0:00:17]} 18. Rac1 {[%emt 0:00:34]} Rfe8 {[%emt 0:00:00]} 19. Re3 {[%emt 0:00:00]} (19. Ne3 $5 {[%cal Re3f5]} Be4 20. Bc2 $14) 19... Re6 {[%emt 0:00:00]} (19... a5 $11) 20. Rxe6 {[%emt 0:00:00] White is more active.} ({White should play} 20. Rf3 $14 Rae8 21. Ne3) 20... Bxe6 $11 {[%emt 0:00:55]} 21. g3 {[%emt 0:00:00]} Bxd5 22. Bxd5 {[%emt 0:00:00][%mdl 4096] Endgame KRB-KRB} Rd8 {[%cal Od6g3]} 23. Bf3 {[%emt 0:00:00]} a5 24. Rc6 {[%emt 0:00:00]} Rb8 25. Ra6 {[%emt 0:00:00]} a4 26. Kf1 {[%emt 0:00:00]} Kf8 27. Bc6 {[%emt 0:00:00]} b4 28. Bxa4 {[%emt 0:01:49]} Kg7 29. Ke2 Rd8 30. Bc6 Bf8 31. d5 Rb8 32. Kd3 Bc5 33. f3 Bg1 $1 34. h3 Bh2 $1 35. g4 (35. d6 $5) 35... b3 {Black is now going downhill.} (35... Bd6 $14) 36. a4 $18 Be5 37. Kc4 Bxb2 38. Bb5 Be5 39. Kxb3 Kh6 (39... Bg3 $16 40. Kc4 h5) 40. h4 Bd6 $2 {[#]} (40... Kg7 41. Kc4 h5) 41. Rc6 $2 (41. Rxd6 $1 $18 {[%mdl 512]} cxd6 42. Kc4) 41... Kg7 {[#]} (41... f5 $16 42. Rc2 (42. gxf5 Kg7 $16) 42... fxg4) 42. Kc4 $1 {[%cal Oc6d6] Black must now prevent Rxd6!} Kf8 $2 {[#]} (42... f5 43. a5 (43. gxf5 Ra8 $16) 43... fxg4 44. fxg4 h5) 43. a5 $2 (43. Rxd6 $1 {[%mdl 512]} cxd6 44. a5) 43... Ke7 44. a6 {[%cal Oc6d6]} Ra8 45. Kd4 Kd8 46. Rc2 Ke7 (46... f5 $142 47. g5 Ke7 48. Re2+ Kf8) 47. Ra2 Ra7 48. Bc6 Bg3 49. h5 {aiming for Ke4.} h6 (49... f5 $142 50. gxf5 Bd6) 50. Kc5 {Threatens to win with Re2+.} Bd6+ 51. Kb5 {Hoping for Re2+.} Be5 52. Kc5 Bd6+ $1 53. Kd4 $2 (53. Kc4 $18) 53... Be5+ $2 {[%mdl 8192]} (53... Bg3 $11 54. Ke4 Kd6) 54. Ke4 Kf8 55. Kf5 (55. Bb7 $142 Ke7 56. Rc2) 55... Kg7 56. Bb7 {Strongly threatening Ra4.} Bd4 57. Rc2 {White mates.} Be5 58. Rc6 Bd6 59. f4 Kf8 {[#]} 60. Rxd6 $1 {[%mdl 512]} cxd6 61. Kxf6 Ke8 62. Kg7 Ke7 63. Kxh6 Kf6 64. g5+ Ke7 65. Kg7 {Weighted Error Value: White=0.48/Black=0.36} 1-0